fUSD/lending_fUSD_20241001
["ID","MTS","AMOUNT","RATE_DAILY","PERIOD"]
[339666919,1727820744748,-794.51,0.00039178,120]
[339666920,1727820744758,-500.0,0.00039178,120]
[339666921,1727820744768,-1083.85,0.00039178,120]
[339666922,1727820744777,-500.0,0.00039178,120]
[339666923,1727820744787,-500.0,0.00039178,120]
[339666924,1727820744796,-1154.19,0.00039178,120]
[339666925,1727820744806,-506.13,0.00039178,120]
[339666926,1727820744816,-415.90766354,0.00039178,120]
[339666927,1727820744825,-500.0,0.00039178,120]
[339666928,1727820744834,-1462.22,0.00039178,120]
[339666929,1727820744843,-500.0,0.00039178,30]
[339666930,1727820744852,-1285.95,0.00039178,120]
[339666931,1727820744862,-613.02193693,0.00039178,120]
[339666932,1727820744871,-500.0,0.00039178,120]
[339666933,1727820744880,-500.0,0.00039178,120]
[339666934,1727820744889,-500.0,0.00039178,120]
[339666935,1727820744898,-500.0,0.00039178,120]
[339666936,1727820744907,-1335.38,0.00039178,120]
[339666937,1727820744917,-1084.42,0.00039178,120]
[339666938,1727820744926,-516.44,0.00039178,120]
[339666939,1727820744935,-1361.89,0.00039178,120]
[339666940,1727820744945,-500.0,0.00039178,120]
[339666941,1727820744954,-669.44,0.00039178,120]
[339666942,1727820744963,-500.0,0.00039178,30]
[339666943,1727820744972,-500.0,0.00039178,120]
[339666944,1727820744982,-634.68,0.00039178,120]
[339666945,1727820744991,-500.0,0.00039178,120]
[339666946,1727820745001,-1067.45,0.00039178,120]
[339666947,1727820745010,-501.11422931,0.00039178,120]
[339666948,1727820745019,-500.0,0.00039178,120]
[339666949,1727820745029,-576.62674898,0.00039178,120]
[339666950,1727820745038,-1550.27,0.00039178,120]
[339666951,1727820745047,-947.2,0.00039178,120]
[339666952,1727820745057,-500.0,0.00039178,120]
[339666953,1727820745066,-745.55,0.00039178,120]
[339666954,1727820745076,-1478.79,0.00039178,120]
[339666955,1727820745085,-533.51,0.00039178,120]
[339666956,1727820745094,-500.0,0.00039178,120]
[339666957,1727820745104,-500.0,0.00039178,120]
[339666958,1727820745113,-500.0,0.00039178,120]
[339666959,1727820745123,-1998.44,0.00039178,120]
[339666960,1727820745132,-1648.28,0.00039178,120]
[339666961,1727820745141,-500.0,0.00039178,120]
[339666962,1727820745152,-630.72,0.00039178,120]
[339666963,1727820745162,-500.0,0.00039178,120]
[339666964,1727820745172,-690.57,0.00039178,120]
[339666965,1727820745181,-1526.16,0.00039178,120]
[339666966,1727820745191,-370.90095411,0.00039178,120]
[339666967,1727820745200,-645.27,0.00039178,120]
[339666968,1727820745209,-529.17,0.00039178,120]
[339666969,1727820745219,-500.0,0.00039178,120]
[339666970,1727820745227,-1154.28,0.00039178,120]
[339666971,1727820745237,-500.0,0.00039178,120]
[339666972,1727820745246,-1705.01,0.00039178,120]
[339666973,1727820745255,-500.0,0.00039178,120]
[339666974,1727820745265,-500.0,0.00039178,120]
[339666975,1727820745275,-500.0,0.00039178,120]
[339666976,1727820745284,-500.0,0.00039178,120]
[339666977,1727820745293,-500.0,0.00039178,120]
[339666978,1727820745304,-1121.16,0.00039178,120]
[339666979,1727820745314,-1850.36,0.00039178,120]
[339666980,1727820745323,-1129.51,0.00039178,120]
[339666981,1727820745334,-500.0,0.00039178,120]
[339666982,1727820745343,-978.74,0.00039178,120]
[339666983,1727820745352,-791.42,0.00039178,120]
[339666984,1727820745361,-889.83,0.00039178,120]
[339666985,1727820745371,-673.51,0.00039178,120]
[339666986,1727820745380,-500.0,0.00039178,120]
[339666987,1727820745390,-500.0,0.00039178,120]
[339666988,1727820745400,-500.0,0.00039178,120]
[339666989,1727820745408,-500.0,0.00039178,120]
[339666990,1727820745419,-500.0,0.00039178,120]
[339666991,1727820745428,-500.0,0.00039178,120]
[339666992,1727820745437,-500.0,0.00039178,120]
[339666993,1727820745448,-683.14,0.00039178,120]
[339666994,1727820745457,-1883.48,0.00039178,120]
[339666995,1727820745466,-500.0,0.00039178,120]
[339666996,1727820745475,-2097.27,0.00039178,120]
[339666997,1727820745485,-500.0,0.00039178,120]
[339666998,1727820745494,-500.0,0.00039178,120]
[339666999,1727820745503,-1083.58,0.00039178,120]
[339667000,1727820745513,-1341.3,0.00039178,120]
[339667001,1727820745524,-523.47,0.00039178,120]
[339667002,1727820745533,-726.8,0.00039178,120]
[339667003,1727820745543,-681.82,0.00039178,120]
[339667004,1727820745552,-2847.32,0.00039178,120]
[339667005,1727820745562,-767.3,0.00039178,120]
[339667006,1727820745572,-534.24,0.00039178,120]
[339667007,1727820745581,-500.0,0.00039178,120]
[339667008,1727820745591,-500.0,0.00039178,120]
[339667009,1727820745600,-1255.83,0.00039178,5]
[339667010,1727820745610,-641.21,0.00039178,120]
[339667011,1727820745620,-500.0,0.00039178,120]
[339667012,1727820745629,-1095.54,0.00039178,120]
[339667013,1727820745639,-591.17,0.00039178,120]
[339667014,1727820745650,-2202.17,0.00039178,120]
[339667015,1727820745660,-503.08688922,0.00039178,120]
[339667016,1727820745669,-500.0,0.00039178,120]
[339667017,1727820745679,-500.0,0.00039178,120]
[339667018,1727820745689,-596.83,0.00039178,120]
[339667019,1727820745699,-500.0,0.00039178,120]
[339667020,1727820745708,-500.0,0.00039178,120]
[339667021,1727820745719,-500.0,0.00039178,120]
[339667022,1727820746000,-577.02,0.00039178,120]
[339667023,1727820746042,-649.43,0.00039178,120]
[339667024,1727820746051,-500.0,0.00039178,120]
[339667025,1727820746061,-500.0,0.00039178,120]
[339667026,1727820746070,-500.0,0.00039178,120]
[339667027,1727820746079,-500.0,0.00039178,120]
[339667028,1727820746088,-3472.21,0.00039178,120]
[339667029,1727820746097,-2000.0,0.00039178,30]
[339667030,1727820746107,-943.1,0.00039178,120]
[339667031,1727820746116,-500.0,0.00039178,120]
[339667032,1727820746126,-1481.97,0.00039178,120]
[339667033,1727820746135,-500.0,0.00039178,120]
[339667034,1727820746144,-500.0,0.00039178,120]
[339667035,1727820746153,-1133.76,0.00039178,120]
[339667036,1727820746163,-500.0,0.00039178,120]
[339667037,1727820746173,-500.0,0.00039178,120]
[339667038,1727820746182,-1356.91,0.00039178,30]
[339667039,1727820746193,-500.0,0.00039178,120]
[339667040,1727820746202,-1544.47,0.00039178,120]
[339667041,1727820746211,-500.0,0.00039178,120]
[339667042,1727820746221,-767.63,0.00039178,120]
[339667043,1727820746230,-1014.81,0.00039178,120]
[339667044,1727820746239,-500.0,0.00039178,120]
[339667045,1727820746248,-500.0,0.00039178,120]
[339667046,1727820746258,-875.49,0.00039178,120]
[339667047,1727820746267,-500.0,0.00039178,120]
[339667048,1727820746278,-1665.5,0.00039178,120]
[339667049,1727820746287,-500.0,0.00039178,120]
[339667050,1727820746296,-1118.58,0.00039178,120]
[339667051,1727820746306,-500.0,0.00039178,120]
[339667052,1727820746315,-500.0,0.00039178,120]
[339667053,1727820746324,-500.0,0.00039178,120]
[339667054,1727820746334,-500.0,0.00039178,30]
[339667055,1727820746343,-500.0,0.00039178,120]
[339667056,1727820746352,-1943.98,0.00039178,120]
[339667057,1727820746362,-500.0,0.00039178,120]
[339667058,1727820746371,-500.0,0.00039178,120]
[339667059,1727820746380,-500.0,0.00039178,120]
[339667060,1727820746390,-500.0,0.00039178,120]
[339667061,1727820746399,-500.0,0.00039178,120]
[339667062,1727820746409,-771.94,0.00039178,120]
[339667063,1727820746419,-3186.38,0.00039178,120]
[339667064,1727820746428,-500.0,0.00039178,120]
[339667065,1727820746437,-4357.71,0.00039178,120]
[339667066,1727820746446,-1781.52,0.00039178,120]
[339667067,1727820746455,-500.0,0.00039178,120]
[339667068,1727820746464,-500.0,0.00039178,120]
[339667069,1727820746474,-2741.84,0.00039178,120]
[339667070,1727820746483,-500.0,0.00039178,120]
[339667071,1727820746492,-2622.79,0.00039178,120]
[339667072,1727820746502,-2160.18,0.00039178,120]
[339667073,1727820746512,-500.0,0.00039178,120]
[339667074,1727820746521,-500.0,0.00039178,120]
[339667075,1727820746531,-1453.92,0.00039178,120]
[339667076,1727820746540,-1585.54,0.00039178,120]
[339667077,1727820746550,-500.0,0.00039178,120]
[339667078,1727820746559,-1793.64,0.00039178,120]
[339667079,1727820746568,-358.51586959,0.00039178,120]
[339667080,1727820746578,-500.0,0.00039178,120]
[339667081,1727820746587,-500.0,0.00039178,2]
[339667082,1727820746596,-1356.0,0.00039178,120]
[339667083,1727820746606,-500.0,0.00039178,120]
[339667084,1727820746615,-716.89,0.00039178,120]
[339667085,1727820746624,-500.0,0.00039178,120]
[339667086,1727820746634,-500.0,0.00039178,120]
[339667087,1727820746645,-500.0,0.00039178,120]
[339667088,1727820746654,-500.0,0.00039178,120]
[339667089,1727820746664,-2229.65,0.00039178,120]
[339667090,1727820746673,-3120.18,0.00039178,120]
[339667091,1727820746683,-500.0,0.00039178,120]
[339667092,1727820746692,-500.0,0.00039178,120]
[339667093,1727820746702,-2562.34,0.00039178,120]
[339667094,1727820746712,-561.48,0.00039178,120]
[339667095,1727820746722,-500.0,0.00039178,120]
[339667096,1727820746731,-1720.36,0.00039178,120]
[339667097,1727820746742,-500.0,0.00039178,120]
[339667098,1727820746752,-1264.36,0.00039178,120]
[339667099,1727820746761,-500.0,0.00039178,120]
[339667100,1727820746771,-500.0,0.00039178,120]
[339667101,1727820746780,-1401.84,0.00039178,120]
[339667102,1727820746789,-500.0,0.00039178,120]
[339667103,1727820746798,-500.0,0.00039178,120]
[339667104,1727820746807,-541.62,0.00039178,120]
[339667105,1727820746816,-1202.32,0.00039178,120]
[339667106,1727820746826,-500.0,0.00039178,120]
[339667107,1727820746835,-500.0,0.00039178,120]
[339667108,1727820746844,-500.0,0.00039178,120]
[339667109,1727820746853,-500.0,0.00039178,120]
[339667110,1727820746863,-1869.79,0.00039178,120]
[339667111,1727820746872,-683.16,0.00039178,120]
[339667112,1727820746881,-500.0,0.00039178,120]
[339667113,1727820746891,-547.35,0.00039178,120]
[339667114,1727820746900,-1021.95,0.00039178,120]
[339667115,1727820746909,-500.0,0.00039178,120]
[339667116,1727820746918,-1116.83,0.00039178,120]
[339667117,1727820746928,-1310.69,0.00039178,120]
[339667118,1727820746937,-1082.8,0.00039178,120]
[339667119,1727820746946,-537.73,0.00039178,120]
[339667120,1727820746955,-500.0,0.00039178,120]
[339667121,1727820746965,-1224.9,0.00039178,120]
[339667122,1727820746974,-500.0,0.00039178,120]
[339667123,1727820746983,-500.0,0.00039178,120]
[339667124,1727820746992,-500.0,0.00039178,120]
[339667125,1727820747001,-500.0,0.00039178,120]
[339667126,1727820747010,-500.0,0.00039178,120]
[339667127,1727820747021,-500.0,0.00039178,120]
[339667128,1727820747030,-1286.67,0.00039178,120]
[339667129,1727820747039,-657.58,0.00039178,120]
[339667130,1727820747048,-500.0,0.00039178,120]
[339667131,1727820747057,-500.0,0.00039178,120]
[339667132,1727820747067,-1073.31,0.00039178,120]
[339667133,1727820747076,-500.0,0.00039178,120]
[339667134,1727820747085,-541.92,0.00039178,120]
[339667135,1727820747095,-2339.06,0.00039178,120]
[339667136,1727820747104,-744.91,0.00039178,120]
[339667137,1727820747113,-500.0,0.00039178,120]
[339667138,1727820747123,-817.84,0.00039178,120]
[339667139,1727820747132,-2599.93,0.00039178,120]
[339667140,1727820747141,-500.0,0.00039178,120]
[339667141,1727820747150,-1750.82,0.00039178,120]
[339667142,1727820747159,-579.27,0.00039178,120]
[339667143,1727820747168,-500.0,0.00039178,120]
[339667144,1727820747178,-500.0,0.00039178,120]
[339667145,1727820747187,-500.0,0.00039178,120]
[339667146,1727820747195,-908.91,0.00039178,120]
[339667147,1727820747205,-1921.1,0.00039178,120]
[339667148,1727820747214,-500.0,0.00039178,120]
[339667149,1727820747223,-1558.18,0.00039178,120]
[339667150,1727820747232,-559.26,0.00039178,120]
[339667151,1727820747241,-517.15,0.00039178,120]
[339667152,1727820747250,-742.38,0.00039178,120]
[339667153,1727820747260,-500.0,0.00039178,120]
[339667154,1727820747269,-1507.58,0.00039178,120]
[339667155,1727820747279,-500.0,0.00039178,120]
[339667156,1727820747288,-500.0,0.00039178,120]
[339667157,1727820747297,-500.0,0.00039178,120]
[339667158,1727820747306,-1812.22,0.00039178,120]
[339667159,1727820747315,-500.0,0.00039178,120]
[339667160,1727820747325,-865.43,0.00039178,120]
[339667161,1727820747334,-912.77,0.00039178,120]
[339667162,1727820747344,-503.29,0.00039178,120]
[339667163,1727820747354,-500.0,0.00039178,120]
[339667164,1727820747363,-538.32,0.00039178,120]
[339667165,1727820747373,-500.0,0.00039178,120]
[339667166,1727820747382,-1232.27,0.00039178,120]
[339667167,1727820747391,-612.63,0.00039178,120]
[339667168,1727820747401,-727.23,0.00039178,120]
[339667169,1727820747410,-500.0,0.00039178,120]
[339667170,1727820747420,-500.0,0.00039178,120]
[339667171,1727820747429,-2434.31,0.00039178,120]
[339667172,1727820747438,-1123.1,0.00039178,120]
[339667173,1727820747448,-500.0,0.00039178,120]
[339667174,1727820747457,-609.21,0.00039178,120]
[339667175,1727820747466,-500.0,0.00039178,120]
[339667176,1727820747475,-20000.0,0.00039178,2]
[339667177,1727820747485,-726.12,0.00039178,120]
[339667178,1727820747495,-639.42,0.00039178,120]
[339667179,1727820747504,-500.0,0.00039178,120]
[339667180,1727820747513,-909.97,0.00039178,120]
[339667181,1727820747524,-500.0,0.00039178,120]
[339667182,1727820747535,-500.0,0.00039178,120]
[339667183,1727820747545,-1769.05,0.00039178,120]
[339667184,1727820747554,-2645.4,0.00039178,120]
[339667185,1727820747564,-719.11,0.00039178,120]
[339667186,1727820747574,-908.05,0.00039178,120]
[339667187,1727820747584,-500.0,0.00039178,120]
[339667188,1727820747593,-500.0,0.00039178,120]
[339667189,1727820747603,-500.0,0.00039178,120]
[339667190,1727820747613,-462.16280196,0.00039178,120]
[339667191,1727820747623,-500.0,0.00039178,120]
[339667192,1727820747632,-1353.18,0.00039178,120]
[339667193,1727820747644,-500.0,0.00039178,120]
[339667194,1727820747654,-1681.46,0.00039178,120]
[339667195,1727820747664,-500.0,0.00039178,120]
[339667196,1727820747674,-500.0,0.00039178,120]
[339667197,1727820747683,-574.63,0.00039178,120]
[339667198,1727820747694,-1427.27,0.00039178,120]
[339667199,1727820747704,-1194.08,0.00039178,120]
[339667200,1727820747714,-1852.67,0.00039178,120]
[339667201,1727820747724,-1271.22,0.00039178,120]
[339667202,1727820747734,-578.88,0.00039178,120]
[339667203,1727820747744,-1006.55,0.00039178,120]
[339667204,1727820747754,-500.0,0.00039178,120]
[339667205,1727820747765,-1067.38,0.00039178,120]
[339667206,1727820747780,-500.0,0.00039178,120]
[339667207,1727820747790,-2065.44,0.00039178,120]
[339667208,1727820747800,-500.0,0.00039178,120]
[339667209,1727820747816,-997.79,0.00039178,120]
[339667210,1727820747825,-676.91,0.00039178,120]
[339667211,1727820747834,-157.97121019,0.00039178,120]
[339667212,1727820747843,-500.0,0.00039178,120]
[339667213,1727820747853,-500.0,0.00039178,120]
[339667214,1727820747863,-500.0,0.00039178,120]
[339667215,1727820747872,-500.0,0.00039178,120]
[339667216,1727820747882,-500.0,0.00039178,120]
[339667217,1727820747892,-1299.08,0.00039178,120]
[339667218,1727820747901,-500.0,0.00039178,120]
[339667219,1727820747911,-7133.94,0.00039178,120]
[339667220,1727820747920,-2948.18,0.00039178,120]
[339667221,1727820747929,-876.55,0.00039178,120]
[339667222,1727820747938,-155.24220467,0.00039178,120]
[339667223,1727820747947,-500.0,0.00039178,120]
[339667224,1727820747957,-500.0,0.00039178,120]
[339667225,1727820747966,-500.0,0.00039178,120]
[339667226,1727820747975,-1297.59,0.00039178,120]
[339667227,1727820747984,-500.0,0.00039178,120]
[339667228,1727820747993,-544.1100182,0.00039178,120]
[339667229,1727820748002,-500.0,0.00039178,120]
[339667230,1727820748011,-500.0,0.00039178,120]
[339667231,1727820748021,-3085.28,0.00039178,120]
[339667232,1727820748039,-1540.7,0.00039178,120]
[339667233,1727820748048,-835.52,0.00039178,120]
[339667234,1727820748058,-1360.6,0.00039178,120]
[339667235,1727820748067,-2073.43,0.00039178,120]
[339667236,1727820748076,-500.0,0.00039178,120]
[339667237,1727820748085,-500.0,0.00039178,120]
[339667238,1727820748094,-500.0,0.00039178,120]
[339667239,1727820748103,-500.0,0.00039178,120]
[339667240,1727820748112,-500.0,0.00039178,120]
[339667241,1727820748123,-920.24,0.00039178,120]
[339667242,1727820748132,-1196.56,0.00039178,120]
[339667243,1727820748141,-500.0,0.00039178,120]
[339667244,1727820748150,-1565.97,0.00039178,7]
[339667245,1727820748160,-2161.41,0.00039178,120]
[339667246,1727820748169,-682.18,0.00039178,120]
[339667247,1727820748178,-503.64143525,0.00039178,120]
[339667248,1727820748186,-500.0,0.00039178,120]
[339667249,1727820748195,-984.06,0.00039178,120]
[339667250,1727820748204,-893.82,0.00039178,120]
[339667251,1727820748214,-614.76,0.00039178,120]
[339667252,1727820748223,-500.0,0.00039178,120]
[339667253,1727820748232,-556.32,0.00039178,120]
[339667254,1727820748241,-4017.33,0.00039178,120]
[339667255,1727820748250,-1530.83,0.00039178,120]
[339667256,1727820748260,-500.0,0.00039178,120]
[339667257,1727820748269,-500.0,0.00039178,120]
[339667258,1727820748282,-500.0,0.00039178,120]
[339667259,1727820748291,-2813.32,0.00039178,120]
[339667260,1727820748300,-500.0,0.00039178,120]
[339667261,1727820748308,-989.03,0.00039178,120]
[339667262,1727820748318,-1381.53,0.00039178,120]
[339667263,1727820748327,-500.0,0.00039178,120]
[339667264,1727820748336,-500.0,0.00039178,120]
[339667265,1727820748346,-625.33,0.00039178,120]
[339667266,1727820748355,-500.0,0.00039178,120]
[339667267,1727820748475,-500.0,0.00039178,120]
[339667268,1727820748485,-3207.82,0.00039178,120]
[339667269,1727820748494,-529.0,0.00039178,120]
[339667270,1727820748503,-500.0,0.00039178,120]
[339667271,1727820748512,-1336.39,0.00039178,120]
[339667272,1727820748523,-500.0,0.00039178,120]
[339667273,1727820748534,-1417.06,0.00039178,120]
[339667274,1727820748543,-500.0,0.00039178,120]
[339667275,1727820748551,-691.8,0.00039178,120]
[339667276,1727820748561,-829.5,0.00039178,120]
[339667277,1727820748571,-1750.69,0.00039178,120]
[339667278,1727820748580,-1683.2,0.00039178,120]
[339667279,1727820748589,-518.37,0.00039178,120]
[339667280,1727820748598,-500.0,0.00039178,120]
[339667281,1727820748607,-500.0,0.00039178,120]
[339667282,1727820748616,-565.37,0.00039178,120]
[339667283,1727820748626,-1040.53,0.00039178,120]
[339667284,1727820748635,-500.0,0.00039178,120]
[339667285,1727820748647,-500.0,0.00039178,120]
[339667286,1727820748656,-500.0,0.00039178,120]
[339667287,1727820748665,-2903.08,0.00039178,120]
[339667288,1727820748674,-1019.42,0.00039178,120]
[339667289,1727820748684,-500.0,0.00039178,120]
[339667290,1727820748693,-500.0,0.00039178,120]
[339667291,1727820748702,-685.88,0.00039178,120]
[339667292,1727820748711,-3679.16,0.00039178,120]
[339667293,1727820748722,-1591.74,0.00039178,120]
[339667294,1727820748732,-500.0,0.00039178,120]
[339667295,1727820748740,-509.48,0.00039178,120]
[339667296,1727820748749,-500.0,0.00039178,120]
[339667297,1727820748759,-931.69,0.00039178,120]
[339667298,1727820748767,-500.0,0.00039178,120]
[339667299,1727820748778,-500.0,0.00039178,120]
[339667300,1727820748787,-846.41,0.00039178,120]
[339667301,1727820748796,-500.0,0.00039178,120]
[339667302,1727820748805,-500.0,0.00039178,120]
[339667303,1727820748814,-420.89471142,0.00039178,120]
[339667304,1727820748823,-579.38,0.00039178,120]
[339667305,1727820748832,-500.0,0.00039178,120]
[339667306,1727820748842,-579.56915065,0.00039178,120]
[339667307,1727820748851,-500.0,0.00039178,120]
[339667308,1727820748860,-658.41,0.00039178,120]
[339667309,1727820748869,-500.0,0.00039178,120]
[339667310,1727820748878,-938.76,0.00039178,120]
[339667311,1727820748888,-500.0,0.00039178,120]
[339667312,1727820748897,-500.0,0.00039178,120]
[339667313,1727820748906,-500.0,0.00039178,120]
[339667314,1727820748915,-633.77,0.00039178,120]
[339667315,1727820748924,-1178.43,0.00039178,120]
[339667316,1727820748933,-631.01,0.00039178,120]
[339667317,1727820748942,-500.0,0.00039178,120]
[339667318,1727820748951,-500.0,0.00039178,120]
[339667319,1727820748960,-4318.07,0.00039178,120]
[339667320,1727820748968,-1300.84,0.00039178,120]
[339667321,1727820748978,-1477.24,0.00039178,120]
[339667322,1727820748987,-649.66,0.00039178,120]
[339667323,1727820748995,-790.35,0.00039178,120]
[339667324,1727820749004,-3571.84,0.00039178,24]
[339667325,1727820749013,-500.0,0.00039178,120]
[339667326,1727820749024,-500.0,0.00039178,120]
[339667327,1727820749033,-260.28722866,0.00039178,120]
[339667328,1727820749043,-500.0,0.00039178,120]
[339667329,1727820749052,-500.0,0.00039178,120]
[339667330,1727820749061,-2269.39,0.00039178,120]
[339667331,1727820749071,-509.05,0.00039178,120]
[339667332,1727820749080,-950.35,0.00039178,14]
[339667333,1727820749089,-906.26,0.00039178,120]
[339667334,1727820749099,-695.43,0.00039178,120]
[339667335,1727820749108,-500.0,0.00039178,120]
[339667336,1727820749118,-500.0,0.00039178,120]
[339667337,1727820749128,-5863.43,0.00039178,120]
[339667338,1727820749137,-500.0,0.00039178,120]
[339667339,1727820749146,-1343.7,0.00039178,120]
[339667340,1727820749155,-510.39839888,0.00039178,120]
[339667341,1727820749164,-500.0,0.00039178,120]
[339667342,1727820749173,-500.0,0.00039178,120]
[339667343,1727820749182,-500.0,0.00039178,120]
[339667344,1727820749191,-500.0,0.00039178,120]
[339667345,1727820749200,-500.0,0.00039178,2]
[339667346,1727820749210,-1433.18,0.00039178,120]
[339667347,1727820749222,-500.0,0.00039178,120]
[339667348,1727820749231,-500.0,0.00039178,120]
[339667349,1727820749240,-2031.89,0.00039178,120]
[339667350,1727820749249,-2892.65,0.00039178,120]
[339667351,1727820749258,-558.87,0.00039178,120]
[339667352,1727820749267,-1519.54,0.00039178,120]
[339667353,1727820749278,-500.0,0.00039178,120]
[339667354,1727820749287,-500.0,0.00039178,120]
[339667355,1727820749296,-5052.98,0.00039178,120]
[339667356,1727820749305,-2464.24,0.00039178,120]
[339667357,1727820749314,-500.0,0.00039178,120]
[339667358,1727820749324,-642.05,0.00039178,120]
[339667359,1727820749333,-598.73,0.00039178,120]
[339667360,1727820749342,-581.71,0.00039178,120]
[339667361,1727820749351,-1855.45,0.00039178,120]
[339667362,1727820749360,-1193.22,0.00039178,120]
[339667363,1727820749369,-2055.41,0.00039178,120]
[339667364,1727820749379,-500.0,0.00039178,120]
[339667365,1727820749388,-500.0,0.00039178,120]
[339667366,1727820749397,-750.15,0.00039178,120]
[339667367,1727820749406,-2691.72,0.00039178,120]
[339667368,1727820749415,-412.00568282,0.00039178,120]
[339667369,1727820749424,-500.0,0.00039178,120]
[339667370,1727820749433,-500.0,0.00039178,120]
[339667371,1727820749442,-548.81,0.00039178,120]
[339667372,1727820749451,-6652.18,0.00039178,120]
[339667373,1727820749460,-500.0,0.00039178,120]
[339667374,1727820749470,-513.2,0.00039178,120]
[339667375,1727820749480,-500.0,0.00039178,120]
[339667376,1727820749489,-1189.34,0.00039178,120]
[339667377,1727820749499,-4738.33,0.00039178,120]
[339667378,1727820749508,-806.35,0.00039178,120]
[339667379,1727820749518,-500.0,0.00039178,120]
[339667380,1727820749529,-500.0,0.00039178,120]
[339667381,1727820749538,-500.0,0.00039178,120]
[339667382,1727820749547,-917.73,0.00039178,120]
[339667383,1727820749556,-500.0,0.00039178,120]
[339667384,1727820749565,-500.0,0.00039178,120]
[339667385,1727820749574,-500.0,0.00039178,120]
[339667386,1727820749583,-533.87,0.00039178,120]
[339667387,1727820749593,-500.0,0.00039178,120]
[339667388,1727820749602,-500.0,0.00039178,120]
[339667389,1727820749611,-945.7,0.00039178,120]
[339667390,1727820749620,-5194.61,0.00039178,120]
[339667391,1727820749629,-500.0,0.00039178,120]
[339667392,1727820749638,-1116.02,0.00039178,120]
[339667393,1727820749651,-500.0,0.00039178,120]
[339667394,1727820749659,-832.73,0.00039178,120]
[339667395,1727820749669,-500.0,0.00039178,120]
[339667396,1727820749678,-500.0,0.00039178,120]
[339667397,1727820749688,-500.0,0.00039178,120]
[339667398,1727820749697,-2703.66,0.00039178,120]
[339667399,1727820749706,-902.25,0.00039178,120]
[339667400,1727820749715,-465.80405111,0.00039178,120]
[339667401,1727820749726,-1320.9,0.00039178,120]
[339667402,1727820749736,-500.0,0.00039178,120]
[339667403,1727820749745,-659.17,0.00039178,120]
[339667404,1727820749755,-2578.82,0.00039178,120]
[339667405,1727820749765,-255.14963562,0.00039178,120]
[339667406,1727820749775,-1704.81,0.00039178,120]
[339667407,1727820749784,-500.0,0.00039178,120]
[339667408,1727820749793,-1586.77,0.00039178,120]
[339667409,1727820749801,-1388.49,0.00039178,120]
[339667410,1727820749811,-834.76,0.00039178,120]
[339667411,1727820749820,-501.46988192,0.00039178,120]
[339667412,1727820749829,-500.0,0.00039178,120]
[339667413,1727820749839,-944.31,0.00039178,120]
[339667414,1727820749848,-500.0,0.00039178,120]
[339667415,1727820749856,-502.02522967,0.00039178,120]
[339667416,1727820749866,-500.0,0.00039178,120]
[339667417,1727820749875,-500.0,0.00039178,120]
[339667418,1727820749884,-500.0,0.00039178,120]